fUSD/lending_fUSD_20240223
["ID","MTS","AMOUNT","RATE_DAILY","PERIOD"]
[314997141,1708720253731,-5109.0039442,0.00038999,2]
[314997142,1708720253741,-3901.6706427,0.00038999,2]
[314997143,1708720253750,-2694.3373413,0.00038999,2]
[314997144,1708720253759,-1487.0040399,0.00038999,2]
[314997145,1708720253768,-279.6707385,0.00038999,2]
[314997146,1708720253777,-151.0,0.00038999,14]
[314997147,1708720253787,-151.0,0.00038999,14]
[314997148,1708720253797,-151.0,0.00038999,2]
[314997149,1708720253807,-151.0,0.00038999,7]
[314997150,1708720253816,-153.821496,0.00038999,14]
[314997151,1708720253825,-151.010962,0.00038999,14]
[314997152,1708720253835,-310.834237,0.00038999,14]
[314997153,1708720253845,-310.834237,0.00038999,14]
[314997154,1708720253855,-151.0,0.00038999,14]
[314997155,1708720253864,-151.0,0.00038999,14]
[314997156,1708720253875,-151.0,0.00038999,14]
[314997157,1708720253884,-151.0,0.00038999,14]
[314997158,1708720253893,-151.0,0.00038999,14]
[314997159,1708720253903,-151.0,0.00038999,14]
[314997160,1708720253913,-163.24031,0.00038999,14]
[314997161,1708720253922,-163.24031,0.00038999,14]
[314997162,1708720253932,-153.156651,0.00038999,14]
[314997163,1708720253941,-161.65656,0.00038999,14]
[314997164,1708720253951,-161.65656,0.00038999,14]
[314997165,1708720253960,-151.0,0.00038999,14]
[314997166,1708720253970,-180.870871,0.00038999,14]
[314997167,1708720253979,-151.0,0.00038999,14]
[314997168,1708720253988,-180.870871,0.00038999,14]
[314997169,1708720253997,-469140.14,0.00039,7]
[314997170,1708720254006,-222.0,0.00039,2]
[314997171,1708720254017,-10000.26216631,0.00039,14]
[314997172,1708720254027,-51500.22259763,0.00039,2]
[314997173,1708720254036,-1100.0,0.00039,3]
[314997174,1708720254046,-2477.13072922,0.00039,2]
[314997175,1708720254055,-3000.0,0.00039,37]
[314997176,1708720254065,-177.74,0.00039,2]
[314997177,1708720254075,-94159.11697678,0.00039,10]
[314997178,1708720254084,-19753.66775138,0.00039,2]
[314997179,1708720254094,-242.19778823,0.00039001,7]
[314997180,1708720254104,-1287.13541928,0.00039002,10]
[314997181,1708720254113,-419.794492,0.00039002,10]
[314997182,1708720254123,-574.46655603,0.00039002,30]
[314997183,1708720254132,-550.92671225,0.00039002,30]
[314997184,1708720254142,-1182.07965381,0.00039002,10]
[314997185,1708720254151,-505.96230105,0.00039002,10]
[314997186,1708720254161,-14460.73813051,0.00039002,30]
[314997187,1708720254171,-313.71206457,0.00039002,10]
[314997188,1708720254180,-471.87051332,0.00039002,10]
[314997189,1708720254189,-937.1405971,0.00039002,10]
[314997190,1708720254199,-1149.89688783,0.00039002,30]
[314997191,1708720254209,-237.78305308,0.00039002,10]
[314997192,1708720254218,-1317.54572412,0.00039002,30]
[314997193,1708720254228,-415.61772954,0.00039002,10]
[314997194,1708720254238,-1000.0,0.00039002,10]
[314997195,1708720254248,-359.35166744,0.00039002,10]
[314997196,1708720254257,-3258.08848771,0.00039002,30]
[314997197,1708720254267,-323.82897861,0.00039002,10]
[314997198,1708720254277,-975.62283065,0.00039002,30]
[314997199,1708720254287,-722.33974836,0.00039002,10]
[314997200,1708720254299,-12236.4508679,0.00039003,2]
[314997201,1708720254311,-9224.0309681,0.00039003,2]
[314997202,1708720254321,-6211.6110682,0.00039003,2]
[314997203,1708720254330,-3199.1911684,0.00039003,2]
[314997204,1708720254340,-186.7712686,0.00039003,2]
[314997205,1708720254351,-150.0,0.00039006,2]
[314997206,1708720254360,-150.0,0.00039008,2]
[314997207,1708720254375,-3000.0,0.0003901,37]
[314997208,1708720254387,-150.0,0.0003901,2]
[314997209,1708720254397,-150.0,0.00039016,7]
[314997210,1708720254407,-150.0,0.00039019,2]
[314997211,1708720254417,-5502.501213,0.0003902,37]
[314997212,1708720254426,-150.0,0.00039023,2]
[314997213,1708720254435,-151.0,0.00039026,14]
[314997214,1708720254445,-151.0,0.00039026,14]
[314997215,1708720254455,-151.0,0.00039026,14]
[314997216,1708720254464,-151.0,0.00039026,14]
[314997217,1708720254473,-151.0,0.00039026,14]
[314997218,1708720254483,-151.0,0.00039026,14]
[314997219,1708720254492,-151.0,0.00039026,14]
[314997220,1708720254502,-151.0,0.00039026,14]
[314997221,1708720254512,-151.0,0.00039026,14]
[314997222,1708720254521,-216.670623,0.00039026,14]
[314997223,1708720254530,-151.0,0.00039026,14]
[314997224,1708720254540,-151.0,0.00039026,14]
[314997225,1708720254551,-151.0,0.00039026,14]
[314997226,1708720254560,-151.0,0.00039026,14]
[314997227,1708720254570,-151.0,0.00039026,14]
[314997228,1708720254580,-151.0,0.00039026,14]
[314997229,1708720254590,-151.0,0.00039026,2]
[314997230,1708720254600,-151.0,0.00039026,2]
[314997231,1708720254609,-151.0,0.00039026,2]
[314997232,1708720254619,-151.0,0.00039026,2]
[314997233,1708720254628,-151.0,0.00039026,2]
[314997234,1708720254638,-310.834237,0.00039026,14]
[314997235,1708720254648,-310.834237,0.00039026,14]
[314997236,1708720254658,-310.834237,0.00039026,14]
[314997237,1708720254668,-310.834237,0.00039026,14]
[314997238,1708720254677,-310.834237,0.00039026,14]
[314997239,1708720254687,-310.834237,0.00039026,14]
[314997240,1708720254697,-310.834237,0.00039026,14]
[314997241,1708720254707,-310.834237,0.00039026,14]
[314997242,1708720254716,-310.834237,0.00039026,14]
[314997243,1708720254726,-310.834237,0.00039026,14]
[314997244,1708720254780,-151.0,0.00039026,14]
[314997245,1708720254789,-151.0,0.00039026,14]
[314997246,1708720254800,-151.0,0.00039026,14]
[314997247,1708720254809,-151.0,0.00039026,14]
[314997248,1708720254818,-151.0,0.00039026,14]
[314997249,1708720254828,-163.24031,0.00039026,14]
[314997250,1708720254838,-163.24031,0.00039026,14]
[314997251,1708720254847,-163.24031,0.00039026,14]
[314997252,1708720254856,-163.24031,0.00039026,14]
[314997253,1708720254865,-163.24031,0.00039026,14]
[314997254,1708720254876,-163.24031,0.00039026,14]
[314997255,1708720254885,-163.24031,0.00039026,14]
[314997256,1708720254894,-163.24031,0.00039026,14]
[314997257,1708720254903,-163.24031,0.00039026,14]
[314997258,1708720254913,-163.24031,0.00039026,14]
[314997259,1708720254923,-151.0,0.0003903,2]
[314997260,1708720254932,-19753.66775138,0.0003903,2]
[314997261,1708720254941,-351.4822262,0.0003903,2]
[314997262,1708720254950,-161.65656,0.0003903,14]
[314997263,1708720254960,-161.65656,0.0003903,14]
[314997264,1708720254969,-161.65656,0.0003903,14]
[314997265,1708720254978,-161.65656,0.0003903,14]
[314997266,1708720254987,-161.65656,0.0003903,14]
[314997267,1708720254996,-161.65656,0.0003903,14]
[314997268,1708720255005,-161.65656,0.0003903,14]
[314997269,1708720255015,-161.65656,0.0003903,14]
[314997270,1708720255024,-161.65656,0.0003903,14]
[314997271,1708720255033,-161.65656,0.0003903,14]
[314997272,1708720255044,-151.0,0.0003903,14]
[314997273,1708720255054,-180.870871,0.0003903,14]
[314997274,1708720255063,-180.870871,0.0003903,14]
[314997275,1708720255072,-180.870871,0.0003903,14]
[314997276,1708720255081,-180.870871,0.0003903,14]
[314997277,1708720255090,-180.870871,0.0003903,14]
[314997278,1708720255099,-151.0,0.0003903,14]
[314997279,1708720255108,-180.870871,0.0003903,14]
[314997280,1708720255117,-180.870871,0.0003903,14]
[314997281,1708720255127,-180.870871,0.0003903,14]
[314997282,1708720255136,-180.870871,0.0003903,14]
[314997283,1708720255145,-180.870871,0.0003903,14]
[314997284,1708720255155,-151.0,0.0003903,14]
[314997285,1708720255165,-151.0,0.0003903,14]
[314997286,1708720255174,-151.0,0.0003903,14]
[314997287,1708720255184,-151.0,0.0003903,14]
[314997288,1708720255193,-226.142149,0.0003903,14]
[314997289,1708720255203,-151.0,0.0003903,14]
[314997290,1708720255213,-151.0,0.0003903,14]
[314997291,1708720255222,-151.0,0.0003903,14]
[314997292,1708720255232,-151.0,0.0003903,14]
[314997293,1708720255241,-151.0,0.0003903,14]
[314997294,1708720255250,-186.19648,0.0003903,14]
[314997295,1708720255259,-151.0,0.0003903,14]
[314997296,1708720255268,-151.0,0.0003903,14]
[314997297,1708720255277,-151.0,0.0003903,14]
[314997298,1708720255286,-151.0,0.0003903,14]
[314997299,1708720255295,-151.0,0.0003903,14]
[314997300,1708720255305,-151.0,0.0003903,14]
[314997301,1708720255319,-151.0,0.0003903,14]
[314997302,1708720255328,-151.0,0.0003903,14]
[314997303,1708720255337,-151.0,0.0003903,14]
[314997304,1708720255346,-151.0,0.0003903,14]
[314997305,1708720255356,-292.201133,0.0003903,14]
[314997306,1708720255365,-34213.27004208,0.0003903,2]
[314997307,1708720255374,-10842.71410045,0.0003903,2]
[314997308,1708720255383,-9279.1149885,0.0003903,2]
[314997309,1708720255393,-5919.0,0.0003903,4]
[314997310,1708720255402,-580.92503303,0.0003903,120]
[314997311,1708720255412,-40009.75117824,0.0003903,2]
[314997312,1708720255421,-5864.13510961,0.0003903,7]
[314997313,1708720255430,-4558.10009469,0.0003903,30]
[314997314,1708720255439,-157.99712439,0.0003903,30]
[314997315,1708720255448,-394.2260924,0.0003903,120]
[314997316,1708720255457,-8000.40764,0.0003903,60]
[314997317,1708720255466,-322.14173608,0.0003903,120]
[314997318,1708720255476,-156.91709133,0.0003903,120]
[314997319,1708720255485,-542.35116777,0.0003903,120]
[314997320,1708720255494,-343.24630042,0.0003903,120]
[314997321,1708720255503,-427.74916339,0.0003903,120]
[314997322,1708720255513,-769.3456285,0.0003903,60]
[314997323,1708720255522,-451.57047125,0.0003903,120]
[314997324,1708720255531,-185.01342448,0.0003903,60]
[314997325,1708720255541,-552.07094464,0.0003903,120]
[314997326,1708720255551,-362.14200754,0.0003903,30]
[314997327,1708720255560,-184.24269973,0.0003903,120]
[314997328,1708720255569,-233.31350734,0.0003903,120]
[314997329,1708720255579,-1034.77638863,0.0003903,60]
[314997330,1708720255588,-1255.05769199,0.0003903,120]
[314997331,1708720255597,-444.91732516,0.0003903,120]
[314997332,1708720255606,-562.63116963,0.0003903,120]
[314997333,1708720255616,-497.1816047,0.0003903,120]
[314997334,1708720255625,-593.14069342,0.0003903,120]
[314997335,1708720255634,-690.53240566,0.0003903,120]
[314997336,1708720255644,-183.29284832,0.0003903,30]
[314997337,1708720255653,-533.47862194,0.0003903,120]
[314997338,1708720255662,-236.31072311,0.0003903,120]
[314997339,1708720255671,-1900.38474602,0.0003903,120]
[314997340,1708720255680,-462.7696983,0.0003903,120]
[314997341,1708720255690,-564.5290669,0.0003903,30]
[314997342,1708720255699,-774.1390725,0.0003903,120]
[314997343,1708720255708,-1377.26197456,0.0003903,120]
[314997344,1708720255717,-8880.17765356,0.0003903,60]
[314997345,1708720255727,-412.22970112,0.0003903,120]
[314997346,1708720255736,-483.5532961,0.0003903,120]
[314997347,1708720255745,-370.38274903,0.0003903,120]
[314997348,1708720255754,-339.12159597,0.0003903,120]
[314997349,1708720255763,-955.47011008,0.0003903,120]
[314997350,1708720255771,-1515.35776235,0.0003903,120]
[314997351,1708720255781,-408.45112564,0.0003903,120]
[314997352,1708720255790,-691.3409507,0.0003903,120]
[314997353,1708720255800,-1254.82690879,0.0003903,120]
[314997354,1708720255810,-161.05563578,0.0003903,30]
[314997355,1708720255819,-567.4885399,0.0003903,30]
[314997356,1708720255828,-8470.18454414,0.0003903,60]
[314997357,1708720255837,-389.70377224,0.0003903,120]
[314997358,1708720255846,-212.55030809,0.0003903,30]
[314997359,1708720255855,-155.72029061,0.0003903,120]
[314997360,1708720255864,-2546.45522166,0.0003903,120]
[314997361,1708720255874,-526.31663965,0.0003903,30]
[314997362,1708720255883,-1556.0095758,0.0003903,30]
[314997363,1708720255892,-869.61842046,0.0003903,30]
[314997364,1708720255901,-184.0,0.0003903,120]
[314997365,1708720255910,-165.0,0.0003903,120]
[314997366,1708720255919,-5000.0,0.0003903,31]
[314997367,1708720255928,-5102.38362595,0.0003903,4]
[314997368,1708720255937,-1225.78145204,0.0003903,4]
[314997369,1708720255946,-29330.15916747,0.0003903,4]
[314997370,1708720255955,-160.793697,0.0003903,2]
[314997371,1708720255964,-645.27668705,0.0003903,120]
[314997372,1708720255973,-809.82336458,0.0003903,120]
[314997373,1708720255982,-56857.52619992,0.0003903,2]
[314997374,1708720255991,-155761.23548793,0.0003903,2]
[314997375,1708720256000,-1210.0,0.0003903,2]
[314997376,1708720256009,-2127.70184675,0.0003903,2]
[314997377,1708720256018,-335.66436756,0.0003903,2]
[314997378,1708720256028,-226.44519261,0.0003903,30]
[314997379,1708720256037,-2899.595905,0.0003903,2]
[314997380,1708720256046,-5819.09742553,0.0003903,2]
[314997381,1708720256056,-1466.27902114,0.0003903,2]
[314997382,1708720256065,-7109.75829304,0.0003903,2]
[314997383,1708720256074,-2636.36615818,0.0003903,2]
[314997384,1708720256083,-2366.93575807,0.0003903,2]
[314997385,1708720256092,-2576.38673706,0.0003903,2]
[314997386,1708720256101,-125728.2482915,0.0003903,2]
[314997387,1708720256110,-1255.19728987,0.0003903,120]
[314997388,1708720256119,-166.97553662,0.0003903,30]
[314997389,1708720256128,-277.70961405,0.0003903,120]
[314997390,1708720256137,-238.9457873,0.0003903,30]
[314997391,1708720256146,-177.05446196,0.0003903,30]
[314997392,1708720256155,-344.81432364,0.0003903,30]
[314997393,1708720256164,-393.0400639,0.0003903,120]
[314997394,1708720256175,-407.46574473,0.0003903,30]
[314997395,1708720256184,-11087.37102262,0.0003903,2]
[314997396,1708720256193,-9819.0,0.0003903,60]
[314997397,1708720256202,-157.5,0.0003903,30]
[314997398,1708720256211,-193.79707849,0.0003903,120]
[314997399,1708720256221,-180.00335951,0.0003903,30]
[314997400,1708720256230,-13000.0,0.0003903,2]
[314997401,1708720256239,-221017.41802143,0.0003903,7]
[314997402,1708720256248,-160.0,0.0003903,2]
[314997403,1708720256257,-2617.79139145,0.0003903,120]
[314997404,1708720256266,-155.87865,0.0003903,14]
[314997405,1708720256275,-1151230.0688,0.0003903,7]
[314997406,1708720256285,-3160.09134832,0.0003903,2]
[314997407,1708720256295,-1216.0,0.0003903,120]
[314997408,1708720256308,-1335.94457535,0.0003903,30]
[314997409,1708720256317,-931.58031358,0.0003903,120]
[314997410,1708720256327,-5000.0,0.0003903,10]
[314997411,1708720256336,-462.98046437,0.0003903,120]
[314997412,1708720256347,-112857.21369587,0.0003903,10]
[314997413,1708720256523,-5099.3883931,0.0003903,10]
[314997414,1708720256536,-991.23648107,0.0003903,10]
[314997415,1708720256549,-58813.73091027,0.0003903,10]
[314997416,1708720256565,-164320.82791731,0.0003903,10]
[314997417,1708720256688,-197.52,0.00030437,10]
[314997418,1708720256697,-151.0,0.00030789,2]
[314997419,1708720256707,-414.65,0.0003459,2]
[314997420,1708720256716,-296.80199066,0.0003689,2]
[314997421,1708720256730,-117.84800934,0.0003689,2]
[314997422,1708720256739,-7235.73584565,0.0003903,10]
[314997423,1708720256752,-2552.94274896,0.0003903,10]
[314997424,1708720256763,-387.06005266,0.0003903,10]
[314997425,1708720256782,-1061.93864847,0.00030593,5]
[314997426,1708720256794,-2040.36184895,0.00030593,5]
[314997427,1708720256805,-434.89334503,0.00030593,5]
[314997428,1708720256816,-767.48516959,0.00030593,5]
[314997429,1708720256827,-1284.04021769,0.00030593,5]
[314997430,1708720256836,-151.0,0.00030789,2]
[314997431,1708720256845,-2345.39805491,0.0003903,10]
[314997432,1708720256883,-38935.79084639,0.0003903,10]
[314997433,1708720256912,-5077.69794393,0.000327,2]
[314997434,1708720256922,-202.28467339,0.0003893,30]
[314997435,1708720256931,-15117.27651211,0.0003903,10]
[314997436,1708720256950,-2963.22126644,0.00030382,2]
[314997437,1708720256961,-1948.6156381,0.00030382,2]
[314997438,1708720256973,-1215.23262659,0.00030382,2]
[314997439,1708720256985,-367.8483172,0.00030382,2]
[314997440,1708720256996,-476.04419949,0.00030382,2]
[314997441,1708720257018,-0.0001325,0.00030382,2]
[314997442,1708720257030,-619.3,0.00030382,2]
[314997443,1708720257042,-2176.7999999,0.00030382,2]
[314997444,1708720257054,-408.2132951,0.00030382,2]
[314997445,1708720257065,-293.51421104,0.00030382,2]
[314997446,1708720257077,-270.24823158,0.00030382,2]
[314997447,1708720257086,-9526.95044803,0.0003903,10]
[314997448,1708720257097,-3001.94428362,0.0003903,10]
[314997449,1708720257108,-9136.15782766,0.0003903,10]
[314997450,1708720257120,-6718.74732363,0.0003903,10]
[314997451,1708720257138,-994.58522516,0.0003903,10]
[314997452,1708720257149,-161945.11144745,0.0003903,10]
[314997453,1708720257161,-2341.17013201,0.0003903,10]
[314997454,1708720257172,-2823.20497129,0.0003903,10]
[314997455,1708720257184,-11134.77035801,0.0003903,10]
[314997456,1708720257195,-1947.39231727,0.0003903,10]
[314997457,1708720257207,-509.94462199,0.0003903,10]
[314997458,1708720462579,169.29,0.00016712,2]
[314997477,1708721431810,-318.25214024,0.00024754,2]
[314997478,1708721431820,-300.0,0.00024755,2]
[314997479,1708721431830,-750.0,0.00025,3]
[314997480,1708721431839,-204.0,0.00025897,2]
[314997481,1708721431848,-800.0,0.00027,3]
[314997482,1708721431858,-151.0,0.00028237,2]
[314997483,1708721431867,-151.0,0.00028246,2]
[314997484,1708721431875,-151.0,0.00028287,2]
[314997485,1708721431885,-151.0,0.00028287,2]
[314997486,1708721431894,-151.0,0.00028288,2]
[314997487,1708721431903,-321.02,0.000283,2]
[314997488,1708721431912,-151.0,0.00028337,2]
[314997489,1708721431921,-151.0,0.00028337,2]
[314997490,1708721431930,-178.73,0.000285,2]
[314997491,1708721431939,-412.44,0.000286,2]
[314997492,1708721431948,-150.0,0.000286,2]
[314997493,1708721431957,-499.99,0.000286,2]
[314997494,1708721431966,-500.0,0.00028601,2]
[314997495,1708721431975,-500.0,0.00028601,2]
[314997496,1708721431985,-500.0,0.00028601,2]
[314997497,1708721431994,-500.0,0.00028601,2]
[314997498,1708721432004,-500.0,0.00028601,2]
[314997499,1708721432013,-9999.99,0.00028601,2]
[314997500,1708721432023,-217.4,0.00028738,2]
[314997501,1708721432032,-456.48196893,0.00028738,2]
[314997502,1708721432045,-850.0,0.00029,3]
[314997503,1708721432056,-633.86,0.00029263,2]
[314997504,1708721432066,-204.0,0.00029686,8]
[314997505,1708721432075,-5655.18759748,0.0003,4]
[314997506,1708721432084,-340.05086963,0.00030474,7]
[314997507,1708721432093,-289.85420869,0.00030474,7]
[314997508,1708721432102,-5842.44280564,0.00030474,7]
[314997509,1708721432111,-200.0,0.00030555,2]
[314997510,1708721432121,-180.81,0.00030561,2]
[314997511,1708721432130,-496.15,0.00030716,2]
[314997512,1708721432139,-926.4,0.0003072,2]
[314997513,1708721432148,-162.51,0.00030724,2]
[314997514,1708721432157,-500.0,0.00030738,2]
[314997515,1708721432166,-500.0,0.0003083,2]
[314997516,1708721432175,-150.0,0.00030966,2]
[314997517,1708721432185,-900.0,0.00031,3]
[314997519,1708721432194,-23900.0,0.00031015,2]
[314997521,1708721432203,-278.24,0.00031106,2]
[314997523,1708721432211,-2000.0,0.0003116,2]
[314997525,1708721432220,-250.0,0.0003116,2]
[314997526,1708721432229,-1397.17,0.00031185,2]
[314997527,1708721432239,-1000.0,0.00031187,2]
[314997528,1708721432248,-13638.348,0.00031188,2]
[314997529,1708721432257,-278.24,0.00031191,2]
[314997530,1708721432266,-278.24,0.00031276,2]
[314997531,1708721432276,-1338.36,0.00031346,2]
[314997532,1708721432286,-278.24,0.00031362,2]
[314997533,1708721432295,-278.24,0.00031447,2]
[314997534,1708721432306,-15989.07517445,0.00031447,7]
[314997535,1708721432322,-36100.6510434,0.00031447,7]
[314997536,1708721432330,-9991.37766539,0.00031447,7]
[314997537,1708721432339,-1288.66083076,0.00031447,7]
[314997538,1708721432348,-184.0,0.0003152,2]
[314997540,1708721432357,-633.86,0.00031526,2]
[314997542,1708721432366,-278.24,0.00031532,2]
[314997544,1708721432375,-278.24,0.00031618,2]
[314997546,1708721432385,-278.24,0.00031703,2]
[314997548,1708721432394,-278.24,0.00031788,2]
[314997550,1708721432403,-278.24,0.00031874,2]
[314997552,1708721432413,-278.24,0.00031959,2]
[314997555,1708721432422,-278.24,0.00032044,2]
[314997557,1708721432431,-308.32,0.000321,2]
[314997559,1708721432440,-278.24,0.00032129,2]
[314997561,1708721432450,-278.24,0.00032215,2]
[314997563,1708721432459,-278.24,0.000323,2]
[314997565,1708721432471,-1231.0,0.00032325,2]
[314997567,1708721432480,-150.0,0.00032325,2]
[314997569,1708721432489,-150.0,0.00032325,2]
[314997571,1708721432499,-150.0,0.00032325,2]
[314997573,1708721432508,-150.151,0.00032325,2]
[314997575,1708721432519,-150.354,0.00032325,2]
[314997577,1708721432528,-150.255,0.00032325,2]
[314997579,1708721432538,-250.0,0.00032325,2]
[314997581,1708721432547,-278.24,0.00032385,2]
[314997583,1708721432557,-150.0,0.00032453,7]
[314997585,1708721432566,-278.24,0.00032471,2]
[314997587,1708721432575,-278.24,0.00032556,2]
[314997590,1708721432589,-224.16,0.00032576,2]
[314997592,1708721432599,-278.24,0.00032641,2]
[314997594,1708721432608,-278.24,0.00032727,2]
[314997596,1708721432617,-469.293,0.0003276,2]
[314997598,1708721432627,-4823.8130468,0.00032777,2]
[314997600,1708721432636,-38269.0959,0.000328,2]
[314997602,1708721432645,-1397.17,0.00032829,2]
[314997604,1708721432657,-1694.23851365,0.00032865,2]
[314997607,1708721432677,-29.86025434,0.00032865,2]
[314997609,1708721432686,-150.1,0.00032877,2]
[314997611,1708721432697,-249.88,0.00032877,2]
[314997613,1708721432706,-250.0,0.00032877,2]
[314997615,1708721432716,-150.0,0.00032877,2]
[314997617,1708721432725,-8000.0,0.000329,2]
[314997619,1708721432735,-950.0,0.00033,3]
[314997621,1708721432746,-4823.81304673,0.00033091,2]
[314997623,1708721432756,-151.0,0.00033123,120]
[314997626,1708721432767,-2000.0,0.000332,2]
[314997627,1708721432777,-4823.81304673,0.00033404,2]
[314997629,1708721432786,-204.0,0.00033475,14]
[314997632,1708721432796,-609.7,0.000335,2]
[314997633,1708721432806,-609.7,0.000335,2]
[314997636,1708721432816,-609.7,0.000335,2]
[314997638,1708721432826,-609.7,0.000335,2]
[314997640,1708721432835,-609.7,0.000335,2]
[314997642,1708721432845,-609.7,0.000335,2]
[314997644,1708721432854,-609.7,0.000335,2]
[314997646,1708721432864,-609.7,0.000335,2]
[314997647,1708721432873,-609.7,0.000335,2]
[314997650,1708721432883,-609.7,0.000335,2]
[314997652,1708721432892,-609.7,0.000335,2]
[314997654,1708721432902,-609.7,0.000335,2]
[314997656,1708721432911,-609.7,0.000335,2]
[314997658,1708721432920,-609.7,0.000335,2]
[314997659,1708721432929,-609.7,0.000335,2]
[314997662,1708721432938,-609.7,0.000335,2]
[314997664,1708721432949,-609.7,0.000335,2]
[314997666,1708721432958,-609.7,0.000335,2]
[314997668,1708721432967,-609.7,0.000335,2]
[314997670,1708721432976,-609.7,0.000335,2]
[314997672,1708721432986,-4823.81304673,0.00033718,2]
[314997674,1708721432996,-150.0,0.00033742,2]
[314997676,1708721433006,-633.86,0.0003379,2]
[314997677,1708721433015,-151.0,0.00033799,30]
[314997680,1708721433025,-150.18,0.00033836,2]
[314997682,1708721433035,-382.411739,0.0003387,2]
[314997684,1708721433045,-1147.34847841,0.00033881,4]
[314997685,1708721433055,-500.0,0.00033939,4]
[314997686,1708721433063,-30714.0,0.0003394,2]
[314997687,1708721433072,-1724.09876794,0.0003398,2]
[314997688,1708721433081,-4823.81304673,0.00034031,2]
[314997689,1708721433090,-879.15,0.000341,2]
[314997690,1708721433098,-2500.0,0.00034101,2]
[314997691,1708721433107,-551.05491709,0.00034199,2]
[314997692,1708721433115,-8000.0,0.000342,2]
[314997693,1708721433124,-4823.81304673,0.00034345,2]
[314997694,1708721433133,-155.64218075,0.00034351,7]
[314997695,1708721433143,-155.64218075,0.00034382,7]
[314997696,1708721433152,-272.43157707,0.00034413,2]
[314997697,1708721433162,-543.1838,0.0003442,2]
[314997698,1708721433171,-185.00317853,0.00034454,7]
[314997699,1708721433181,-1397.17,0.00034473,2]
[314997700,1708721433190,-151.0,0.00034488,7]
[314997701,1708721433200,-19186.283151,0.0003452,2]
[314997702,1708721433210,-1254.228976,0.0003452,2]
[314997703,1708721433220,-425.506764,0.0003452,2]
[314997704,1708721433230,-1708.441318,0.0003452,2]
[314997705,1708721433239,-798.145712,0.0003452,2]
[314997706,1708721433249,-500.0,0.0003452,4]
[314997707,1708721433258,-500.0,0.0003452,4]
[314997708,1708721433267,-504.27547995,0.0003452,4]
[314997709,1708721433277,-500.0,0.0003452,4]
[314997710,1708721433286,-500.0,0.0003452,4]
[314997711,1708721433296,-500.0,0.0003452,4]
[314997712,1708721433307,-570.10408,0.0003452,2]
[314997713,1708721433317,-10000.0,0.00034521,2]
[314997714,1708721433326,-569.78,0.00034531,4]
[314997715,1708721433335,-500.0,0.00034531,4]
[314997716,1708721433345,-150.0,0.00034548,10]
[314997717,1708721433355,-926.4,0.0003456,2]
[314997718,1708721433365,-167.02514081,0.00034562,7]
[314997719,1708721433374,-150.0,0.00034607,2]
[314997720,1708721433384,-500.0,0.00034657,4]
[314997721,1708721433393,-535.97,0.00034657,4]
[314997722,1708721433402,-3629.79333336,0.00034658,2]
[314997723,1708721433454,-1194.01971337,0.00034658,2]
[314997724,1708721433463,-500.0,0.00034668,4]
[314997725,1708721433474,-550.98028663,0.00034694,2]
[314997726,1708721433485,-32.68731337,0.00034694,2]
[314997727,1708721433495,-3646.5,0.00034694,2]
[314997728,1708721433505,-152.0,0.00034753,3]
[314997729,1708721433514,-28779.424727,0.00034794,2]
[314997730,1708721433524,-1881.343464,0.00034794,2]
[314997731,1708721433533,-638.260147,0.00034794,2]
[314997732,1708721433543,-2562.661977,0.00034794,2]
[314997733,1708721433554,-1197.218568,0.00034794,2]
[314997734,1708721433564,-500.0,0.00034794,4]
[314997735,1708721433573,-855.15612,0.00034794,2]
[314997736,1708721433583,-328.0,0.00034795,2]
[314997737,1708721433593,-523.98,0.00034805,4]